fUSD/lending_fUSD_20260408
["ID","MTS","AMOUNT","RATE_DAILY","PERIOD"]
[420019717,1775620252134,-150.0,0.00014771,2]
[420019718,1775620252144,-5888.0,0.00014776,2]
[420019719,1775620252155,-150.0,0.00014783,2]
[420019720,1775620252166,-150.0,0.00014783,2]
[420019721,1775620252177,-150.0,0.00014787,2]
[420019722,1775620252188,-250.0,0.00014795,2]
[420019723,1775620252199,-1500.0,0.00014795,2]
[420019724,1775620252209,-1500.0,0.00014795,2]
[420019725,1775620252220,-1500.0,0.00014795,2]
[420019726,1775620252230,-1500.0,0.00014795,2]
[420019727,1775620252241,-1500.0,0.00014795,2]
[420019728,1775620252252,-1500.0,0.00014795,2]
[420019729,1775620252262,-1515.29028124,0.00014795,2]
[420019730,1775620252273,-1500.0,0.00014795,2]
[420019731,1775620252283,-797.0,0.00014801,2]
[420019732,1775620252293,-150.0,0.00014802,2]
[420019733,1775620252304,-150.0,0.00014808,2]
[420019734,1775620252315,-150.0,0.00014816,2]
[420019735,1775620252325,-150.0,0.00014835,2]
[420019736,1775620252336,-150.0,0.00014838,2]
[420019737,1775620252346,-150.0,0.00014842,2]
[420019738,1775620252357,-150.0,0.00014842,2]
[420019739,1775620252367,-150.0,0.0001485,2]
[420019740,1775620252379,-82053.9384215,0.00014859,2]
[420019741,1775620252390,-271.049962,0.00014859,2]
[420019742,1775620252401,-151.0,0.00014859,2]
[420019743,1775620252411,-230.410982,0.00014859,2]
[420019744,1775620252422,-226.261666,0.00014859,2]
[420019745,1775620252432,-226.261666,0.00014859,2]
[420019746,1775620252443,-226.261666,0.00014859,2]
[420019747,1775620252453,-151.0,0.00014859,2]
[420019748,1775620252463,-226.261666,0.00014859,2]
[420019749,1775620252475,-151.0,0.00014859,2]
[420019750,1775620252485,-151.0,0.00014859,2]
[420019751,1775620252496,-151.0,0.00014859,2]
[420019752,1775620252507,-206.613888,0.00014859,2]
[420019753,1775620252517,-235.330011,0.00014859,2]
[420019754,1775620252528,-319.450739,0.00014859,2]
[420019755,1775620252538,-319.450739,0.00014859,2]
[420019756,1775620252548,-319.450739,0.00014859,2]
[420019757,1775620252558,-319.450739,0.00014859,2]
[420019758,1775620252568,-680.691086,0.00014859,2]
[420019759,1775620252578,-680.691086,0.00014859,2]
[420019760,1775620252588,-1436.269995,0.00014859,2]
[420019761,1775620252599,-680.691086,0.00014859,2]
[420019762,1775620252610,-1436.269995,0.00014859,2]
[420019763,1775620252620,-680.691086,0.00014859,2]
[420019764,1775620252631,-1436.269995,0.00014859,2]
[420019765,1775620252641,-1436.269995,0.00014859,2]
[420019766,1775620252651,-153.180645,0.00014859,2]
[420019767,1775620252661,-153.180645,0.00014859,2]
[420019768,1775620252672,-153.180645,0.00014859,2]
[420019769,1775620252682,-153.180645,0.00014859,2]
[420019770,1775620252693,-151.0,0.00014859,2]
[420019771,1775620252704,-153.242235,0.00014859,2]
[420019772,1775620252714,-153.242235,0.00014859,2]
[420019773,1775620252725,-153.242235,0.00014859,2]
[420019774,1775620252735,-153.242235,0.00014859,2]
[420019775,1775620252746,-151.0,0.00014859,2]
[420019776,1775620252755,-175.533937,0.00014859,2]
[420019777,1775620252766,-175.533937,0.00014859,2]
[420019778,1775620252776,-151.0,0.00014859,2]
[420019779,1775620252786,-175.533937,0.00014859,2]
[420019780,1775620252796,-151.0,0.00014859,2]
[420019781,1775620252808,-175.533937,0.00014859,2]
[420019782,1775620252818,-151.0,0.00014859,2]
[420019783,1775620252828,-151.0,0.00014859,2]
[420019784,1775620252839,-151.0,0.00014859,2]
[420019785,1775620252849,-151.0,0.00014859,2]
[420019786,1775620252859,-151.0,0.00014859,2]
[420019787,1775620252869,-151.0,0.00014859,2]
[420019788,1775620252879,-151.0,0.00014859,2]
[420019789,1775620252888,-151.0,0.00014859,2]
[420019790,1775620253348,-245.185845,0.00014859,2]
[420019791,1775620253357,-1783.253125,0.00014859,2]
[420019792,1775620253366,-1783.253125,0.00014859,2]
[420019793,1775620253377,-1783.253125,0.00014859,2]
[420019794,1775620253387,-1783.253125,0.00014859,2]
[420019795,1775620253397,-151.0,0.00014859,2]
[420019796,1775620253410,-151.0,0.00014859,2]
[420019797,1775620253420,-151.0,0.00014859,2]
[420019798,1775620253430,-323.380748,0.00014859,2]
[420019799,1775620253440,-323.380748,0.00014859,2]
[420019800,1775620253449,-323.380748,0.00014859,2]
[420019801,1775620253459,-151.0,0.00014859,2]
[420019802,1775620253469,-257.70676,0.00014859,2]
[420019803,1775620253478,-323.380748,0.00014859,2]
[420019804,1775620253488,-151.0,0.00014859,2]
[420019805,1775620253498,-257.70676,0.00014859,2]
[420019806,1775620253508,-151.0,0.00014859,2]
[420019807,1775620253517,-151.0,0.00014859,2]
[420019808,1775620253527,-257.70676,0.00014859,2]
[420019809,1775620253537,-151.0,0.00014859,2]
[420019810,1775620253547,-257.70676,0.00014859,2]
[420019811,1775620253557,-151.0,0.00014859,2]
[420019812,1775620253566,-151.0,0.00014859,2]
[420019813,1775620253576,-151.0,0.00014859,2]
[420019814,1775620253586,-388.262627,0.00014859,2]
[420019815,1775620253595,-388.262627,0.00014859,2]
[420019816,1775620253605,-388.262627,0.00014859,2]
[420019817,1775620253614,-151.0,0.00014859,2]
[420019818,1775620253624,-388.262627,0.00014859,2]
[420019819,1775620253633,-151.0,0.00014859,2]
[420019820,1775620253643,-151.0,0.00014859,2]
[420019821,1775620253653,-265.729534,0.00014859,2]
[420019822,1775620253663,-151.0,0.00014859,2]
[420019823,1775620253673,-151.0,0.00014859,2]
[420019824,1775620253683,-333.804281,0.00014859,2]
[420019825,1775620253693,-151.0,0.00014859,2]
[420019826,1775620253703,-333.804281,0.00014859,2]
[420019827,1775620253713,-220.876532,0.00014859,2]
[420019828,1775620253722,-333.804281,0.00014859,2]
[420019829,1775620253732,-151.0,0.00014859,2]
[420019830,1775620253741,-333.804281,0.00014859,2]
[420019831,1775620253752,-151.0,0.00014859,2]
[420019832,1775620253761,-206.144742,0.00014859,2]
[420019833,1775620253771,-151.0,0.00014859,2]
[420019834,1775620253781,-151.0,0.00014859,2]
[420019835,1775620253791,-151.0,0.00014859,2]
[420019836,1775620253801,-797.0,0.00014862,2]
[420019837,1775620253810,-150.0,0.00014865,2]
[420019838,1775620253821,-241.23203275,0.00014878,2]
[420019839,1775620253830,-150.0,0.00014888,2]
[420019840,1775620253852,-150.0,0.00014892,2]
[420019841,1775620253864,-6600.0,0.000149,5]
[420019842,1775620253874,-150.0,0.00014914,2]
[420019843,1775620253885,-150.0,0.00014914,2]
[420019844,1775620253895,-150.0,0.00014914,2]
[420019845,1775620253906,-150.0,0.00014914,2]
[420019846,1775620253916,-150.0,0.00014914,2]
[420019847,1775620253926,-150.0,0.00014914,2]
[420019848,1775620253936,-7993.0059043,0.00014918,2]
[420019849,1775620253946,-21349.29130678,0.00014918,2]
[420019850,1775620253957,-150.0,0.00014935,2]
[420019851,1775620253967,-150.0,0.00014939,2]
[420019852,1775620253977,-736.0,0.00014945,2]
[420019853,1775620253987,-1461.6329815,0.00014951,2]
[420019854,1775620253997,-201.93286099,0.00014951,2]
[420019855,1775620254007,-150.0,0.00014963,2]
[420019856,1775620254018,-350.0,0.00014964,2]
[420019857,1775620254028,-2000.0,0.00014975,2]
[420019858,1775620254039,-150.0,0.00014977,2]
[420019859,1775620254049,-150.0,0.00014985,2]
[420019860,1775620254059,-150.0,0.00014985,2]
[420019861,1775620254070,-150.0,0.0001499,2]
[420019862,1775620254080,-150.0,0.00014992,2]
[420019863,1775620254091,-2316.44024559,0.00015,2]
[420019864,1775620254101,-1007.07827575,0.00015,2]
[420019865,1775620254112,-300.0,0.00015,2]
[420019866,1775620254122,-162.4734,0.00015,2]
[420019867,1775620254132,-162.4734,0.00015,2]
[420019868,1775620254143,-162.4734,0.00015,2]
[420019869,1775620254153,-535.0,0.00015,2]
[420019870,1775620254163,-150.0,0.00015012,2]
[420019871,1775620254174,-151.0,0.00015016,2]
[420019872,1775620254184,-208.433601,0.00015016,2]
[420019873,1775620254194,-207.253336,0.00015016,2]
[420019874,1775620254204,-151.0,0.00015016,2]
[420019875,1775620254214,-151.0,0.00015016,2]
[420019876,1775620254224,-627.065,0.00015016,2]
[420019877,1775620254234,-1347.0,0.00015016,2]
[420019878,1775620254244,-3542.414,0.00015016,2]
[420019879,1775620254254,-1217.0,0.00015016,2]
[420019880,1775620254265,-926.0,0.00015016,2]
[420019881,1775620254275,-1264.0,0.00015016,2]
[420019882,1775620254285,-277.201,0.00015016,2]
[420019883,1775620254295,-3772.0,0.00015016,2]
[420019884,1775620254305,-6022.0,0.00015016,2]
[420019885,1775620254315,-150.0,0.0001502,2]
[420019886,1775620254326,-150.0,0.00015026,2]
[420019887,1775620254342,-151.0,0.00015034,2]
[420019888,1775620254352,-151.0,0.00015034,2]
[420019889,1775620254364,-151.0,0.00015034,2]
[420019890,1775620254375,-240.819994,0.00015034,2]
[420019891,1775620254385,-151.0,0.00015034,2]
[420019892,1775620254395,-151.0,0.00015034,2]
[420019893,1775620254406,-196.926753,0.00015034,2]
[420019894,1775620254417,-151.0,0.00015034,2]
[420019895,1775620254427,-151.0,0.00015034,2]
[420019896,1775620254438,-151.0,0.00015034,2]
[420019897,1775620254449,-188.0,0.00015034,2]
[420019898,1775620254460,-151.0,0.00015034,2]
[420019899,1775620254469,-151.0,0.00015034,2]
[420019900,1775620254480,-151.0,0.00015034,2]
[420019901,1775620254491,-291.394239,0.00015034,2]
[420019902,1775620254501,-151.0,0.00015034,2]
[420019903,1775620254513,-151.0,0.00015034,2]
[420019904,1775620254523,-261.547627,0.00015034,2]
[420019905,1775620254534,-151.0,0.00015034,2]
[420019906,1775620254545,-226.261666,0.00015034,2]
[420019907,1775620254555,-226.261666,0.00015034,2]
[420019908,1775620254565,-226.261666,0.00015034,2]
[420019909,1775620254575,-151.0,0.00015034,2]
[420019910,1775620254586,-226.261666,0.00015034,2]
[420019911,1775620254596,-151.0,0.00015034,2]
[420019912,1775620254606,-151.0,0.00015034,2]
[420019913,1775620254616,-151.0,0.00015034,2]
[420019914,1775620254626,-319.450739,0.00015034,2]
[420019915,1775620254636,-319.450739,0.00015034,2]
[420019916,1775620254647,-319.450739,0.00015034,2]
[420019917,1775620254658,-319.450739,0.00015034,2]
[420019918,1775620254668,-680.691086,0.00015034,2]
[420019919,1775620254678,-680.691086,0.00015034,2]
[420019920,1775620254688,-1436.269995,0.00015034,2]
[420019921,1775620254698,-680.691086,0.00015034,2]
[420019922,1775620254709,-1436.269995,0.00015034,2]
[420019923,1775620254719,-680.691077,0.00015034,2]
[420019924,1775620254730,-1436.269995,0.00015034,2]
[420019925,1775620254740,-1436.269988,0.00015034,2]
[420019926,1775620254751,-153.180645,0.00015034,2]
[420019927,1775620254761,-153.180645,0.00015034,2]
[420019928,1775620254772,-153.180645,0.00015034,2]
[420019929,1775620254783,-153.180648,0.00015034,2]
[420019930,1775620254792,-194.291162,0.00015034,2]
[420019931,1775620254802,-153.242235,0.00015034,2]
[420019932,1775620254813,-153.242235,0.00015034,2]
[420019933,1775620254823,-153.242235,0.00015034,2]
[420019934,1775620254838,-153.242244,0.00015034,2]
[420019935,1775620254849,-175.533937,0.00015034,2]
[420019936,1775620254860,-175.533937,0.00015034,2]
[420019937,1775620254871,-151.0,0.00015034,2]
[420019938,1775620254881,-151.0,0.00015034,2]
[420019939,1775620254892,-175.533937,0.00015034,2]
[420019940,1775620254903,-193.741393,0.00015034,2]
[420019941,1775620254914,-175.533939,0.00015034,2]
[420019942,1775620254925,-151.0,0.00015034,2]
[420019943,1775620254936,-151.0,0.00015034,2]
[420019944,1775620254947,-151.0,0.00015034,2]
[420019945,1775620254957,-151.0,0.00015034,2]
[420019946,1775620254969,-151.0,0.00015034,2]
[420019947,1775620254979,-151.0,0.00015034,2]
[420019948,1775620254989,-151.0,0.00015034,2]
[420019949,1775620255000,-297.952541,0.00015034,2]
[420019950,1775620255010,-1783.253125,0.00015034,2]
[420019951,1775620255021,-1783.253125,0.00015034,2]
[420019952,1775620255032,-1783.253125,0.00015034,2]
[420019953,1775620255043,-1783.253128,0.00015034,2]
[420019954,1775620255054,-151.0,0.00015034,2]
[420019955,1775620255065,-151.0,0.00015034,2]
[420019956,1775620255076,-151.0,0.00015034,2]
[420019957,1775620255086,-323.380748,0.00015034,2]
[420019958,1775620255097,-323.380748,0.00015034,2]
[420019959,1775620255107,-323.380748,0.00015034,2]
[420019960,1775620255118,-151.0,0.00015034,2]
[420019961,1775620255128,-257.70676,0.00015034,2]
[420019962,1775620255141,-323.38075,0.00015034,2]
[420019963,1775620255152,-151.0,0.00015034,2]
[420019964,1775620255163,-257.70676,0.00015034,2]
[420019965,1775620255173,-293.61183,0.00015034,2]
[420019966,1775620255183,-151.0,0.00015034,2]
[420019967,1775620255194,-257.70676,0.00015034,2]
[420019968,1775620255204,-151.0,0.00015034,2]
[420019969,1775620255215,-257.70676,0.00015034,2]
[420019970,1775620255225,-151.0,0.00015034,2]
[420019971,1775620255235,-151.0,0.00015034,2]
[420019972,1775620255245,-388.262627,0.00015034,2]
[420019973,1775620255255,-388.262627,0.00015034,2]
[420019974,1775620255266,-388.262627,0.00015034,2]
[420019975,1775620255277,-151.0,0.00015034,2]
[420019976,1775620255287,-388.262627,0.00015034,2]
[420019977,1775620255297,-151.0,0.00015034,2]
[420019978,1775620255308,-151.0,0.00015034,2]
[420019979,1775620255319,-151.0,0.00015034,2]
[420019980,1775620255329,-151.0,0.00015034,2]
[420019981,1775620255342,-333.804281,0.00015034,2]
[420019982,1775620255353,-151.0,0.00015034,2]
[420019983,1775620255363,-333.804281,0.00015034,2]
[420019984,1775620255374,-333.804281,0.00015034,2]
[420019985,1775620255384,-151.0,0.00015034,2]
[420019986,1775620255395,-333.804279,0.00015034,2]
[420019987,1775620255405,-151.0,0.00015034,2]
[420019988,1775620255416,-151.0,0.00015034,2]
[420019989,1775620255426,-151.0,0.00015034,2]
[420019990,1775620255436,-151.0,0.00015034,2]
[420019991,1775620255446,-327115.3585948,0.00015034,2]
[420019992,1775620255457,-150.0,0.0001504,2]
[420019993,1775620255467,-150.0,0.00015045,2]
[420019994,1775620255476,-150.0,0.00015045,2]
[420019995,1775620255487,-150.0,0.00015056,2]
[420019996,1775620255496,-150.0,0.00015056,2]
[420019997,1775620255506,-2733.26,0.00015057,2]
[420019998,1775620255517,-6090.07,0.00015057,2]
[420019999,1775620255527,-150.0,0.00015061,2]
[420020000,1775620255537,-150.0,0.00015062,2]
[420020001,1775620255547,-2308.67,0.00015068,2]
[420020002,1775620255558,-390.38,0.00015068,2]
[420020003,1775620255569,-151.0,0.00015068,2]
[420020004,1775620255579,-151.0,0.00015068,2]
[420020005,1775620255590,-151.0,0.00015068,2]
[420020006,1775620255599,-151.0,0.00015068,2]
[420020007,1775620255610,-151.0,0.00015068,2]
[420020008,1775620255621,-151.0,0.00015068,2]
[420020009,1775620255631,-151.0,0.00015068,2]
[420020010,1775620255641,-151.0,0.00015068,2]
[420020011,1775620255651,-151.0,0.00015068,2]
[420020012,1775620255662,-151.0,0.00015068,2]
[420020013,1775620255672,-187.069104,0.00015068,2]
[420020014,1775620255682,-150.0,0.00015071,2]
[420020015,1775620255693,-150.0,0.00015091,2]
[420020016,1775620255704,-3292.0,0.00015098,2]
[420020017,1775620255714,-150.0,0.00015105,2]
[420020018,1775620255724,-150.0,0.0001511,2]
[420020019,1775620255735,-150.0,0.00015128,2]
[420020020,1775620255746,-150.0,0.00015128,2]
[420020021,1775620255755,-150.0,0.00015142,2]
[420020022,1775620255765,-150.0,0.00015147,2]
[420020023,1775620255775,-150.0,0.00015149,2]
[420020024,1775620255785,-479.0,0.00015151,2]
[420020025,1775620255795,-150.0,0.00015159,2]
[420020026,1775620255805,-150.0,0.00015175,2]
[420020027,1775620255816,-150.0,0.00015175,2]
[420020028,1775620255826,-500.0,0.00015183,2]
[420020029,1775620255848,-500.0,0.00015183,2]
[420020030,1775620255858,-301.03967055,0.00015183,2]
[420020031,1775620255868,-500.0,0.00015183,2]
[420020032,1775620255877,-500.0,0.00015183,2]
[420020033,1775620255887,-419.40847116,0.00015183,2]
[420020034,1775620255896,-500.0,0.00015183,2]
[420020035,1775620255906,-500.0,0.00015183,2]
[420020036,1775620255916,-500.0,0.00015183,2]
[420020037,1775620255925,-500.0,0.00015183,2]
[420020038,1775620255935,-542.71692042,0.00015183,2]
[420020039,1775620255945,-500.0,0.00015183,2]
[420020040,1775620255955,-500.0,0.00015183,2]
[420020041,1775620255965,-5888.0,0.00015184,2]
[420020042,1775620255975,-150.0,0.00015189,2]
[420020043,1775620255986,-150.0,0.00015192,2]
[420020044,1775620255995,-150.0,0.00015199,2]
[420020045,1775620256005,-150.0,0.00015199,2]
[420020046,1775620256015,-88183.08,0.000152,2]
[420020047,1775620256025,-150.0,0.00015208,2]
[420020048,1775620256035,-150.0,0.00015228,2]
[420020049,1775620256045,-150.0,0.00015232,2]
[420020050,1775620256055,-150.0,0.00015243,2]
[420020051,1775620256065,-150.0,0.0001525,2]
[420020052,1775620256075,-150.0,0.00015257,2]
[420020053,1775620256085,-5278.00743468,0.00015268,2]
[420020054,1775620256095,-4531.0,0.0001527,2]
[420020055,1775620256104,-150.0,0.0001527,2]
[420020056,1775620256114,-150.0,0.0001527,2]
[420020057,1775620256124,-150.0,0.00015274,2]
[420020058,1775620256133,-171.98,0.00015291,2]
[420020059,1775620256143,-150.0,0.00015294,2]
[420020060,1775620256152,-190.7184,0.000153,2]
[420020061,1775620256162,-324.46305775,0.00015304,2]
[420020062,1775620256172,-150.0,0.00015306,2]
[420020063,1775620256181,-150.0,0.00015306,2]
[420020064,1775620256191,-150.0,0.00015306,2]
[420020065,1775620256201,-150.0,0.00015306,2]
[420020066,1775620256211,-150.0,0.00015317,2]
[420020067,1775620256221,-786.02,0.00015319,2]
[420020068,1775620256231,-150.0,0.00015342,2]
[420020069,1775620256241,-150.0,0.00015342,2]
[420020070,1775620256251,-2000.0,0.00015342,2]
[420020071,1775620256262,-451.88193642,0.00015342,2]
[420020072,1775620256272,-2000.0,0.00015342,2]
[420020073,1775620256282,-2002.28581045,0.00015342,2]
[420020074,1775620256292,-2000.0,0.00015342,2]
[420020075,1775620256302,-501.38361513,0.00015342,2]
[420020076,1775620256311,-503.63625007,0.00015342,2]
[420020077,1775620256321,-150.0,0.00015344,2]
[420020078,1775620256331,-318.26,0.00015352,2]
[420020079,1775620256341,-150.0,0.00015355,2]
[420020080,1775620256350,-150.0,0.00015359,2]
[420020081,1775620256360,-1573.0,0.0001536,2]
[420020082,1775620256370,-1542.0,0.0001536,2]
[420020083,1775620256379,-500.0,0.00015363,2]
[420020084,1775620256389,-500.0,0.00015363,2]
[420020085,1775620256398,-500.0,0.00015363,2]
[420020086,1775620256407,-500.0,0.00015363,2]
[420020087,1775620256417,-701.0,0.00015363,2]
[420020088,1775620256426,-162.0,0.00015363,2]
[420020089,1775620256436,-1159.0,0.00015363,2]
[420020090,1775620256445,-5456.0,0.00015363,2]
[420020091,1775620256455,-3464.0,0.00015363,2]
[420020092,1775620256464,-1355.0,0.00015363,2]
[420020093,1775620256474,-977.0,0.00015363,2]
[420020094,1775620256484,-150.0,0.00015385,2]
[420020095,1775620256494,-150.0,0.00015395,2]
[420020096,1775620256504,-171.98,0.00015399,2]
[420020097,1775620256514,-150.0,0.00015402,2]
[420020098,1775620256524,-150.0,0.00015404,2]
[420020099,1775620256533,-16351.8560908,0.00015405,2]
[420020100,1775620256542,-350.0,0.00015407,2]
[420020101,1775620256552,-7993.0059043,0.00015409,2]
[420020102,1775620256561,-151.0,0.00015409,2]
[420020103,1775620256571,-151.0,0.00015409,2]
[420020104,1775620256580,-151.0,0.00015409,2]
[420020105,1775620256589,-150.0,0.00015413,2]
[420020106,1775620256599,-150.0,0.00015413,2]
[420020107,1775620256608,-150.0,0.00015437,2]
[420020108,1775620256618,-150.0,0.00015437,2]
[420020109,1775620256627,-985.91,0.00015443,2]
[420020110,1775620256638,-150.0,0.00015444,2]
[420020111,1775620256647,-150.0,0.00015445,2]
[420020112,1775620256656,-350.0,0.00015447,2]
[420020113,1775620256666,-150.0,0.00015453,2]
[420020114,1775620256676,-151.0,0.00015458,2]
[420020115,1775620256686,-150.0,0.00015463,2]
[420020116,1775620256696,-150.0,0.00015474,2]
[420020117,1775620256706,-150.0,0.00015485,2]
[420020118,1775620256716,-150.0,0.00015485,2]
[420020119,1775620256725,-150.0,0.00015486,2]
[420020120,1775620256735,-746.45398951,0.00015489,2]
[420020121,1775620256744,-150.0,0.00015496,2]
[420020122,1775620256754,-599.60298507,0.00015498,2]
[420020123,1775620256763,-209.40437684,0.00015499,2]
[420020124,1775620256773,-150.0,0.00015502,2]
[420020125,1775620256782,-2319.43,0.00015507,2]
[420020126,1775620256791,-4000.0,0.00015507,2]
[420020127,1775620256801,-150.0,0.00015529,2]
[420020128,1775620256810,-151.0,0.0001553,2]
[420020129,1775620256820,-151.0,0.0001553,2]
[420020130,1775620256829,-151.0,0.0001553,2]
[420020131,1775620256839,-151.0,0.0001553,2]
[420020132,1775620256849,-150.0,0.00015542,2]
[420020133,1775620256858,-113846.4586908,0.00015543,2]
[420020134,1775620256868,-263.680738,0.00015543,2]
[420020135,1775620256877,-151.0,0.00015543,2]
[420020136,1775620256886,-151.0,0.00015543,2]
[420020137,1775620256896,-151.0,0.00015543,2]
[420020138,1775620256906,-226.261666,0.00015543,2]
[420020139,1775620256916,-226.261666,0.00015543,2]
[420020140,1775620256926,-226.261666,0.00015543,2]
[420020141,1775620256936,-151.0,0.00015543,2]
[420020142,1775620256946,-226.261671,0.00015543,2]
[420020143,1775620256956,-151.0,0.00015543,2]
[420020144,1775620256965,-151.0,0.00015543,2]
[420020145,1775620256975,-151.0,0.00015543,2]
[420020146,1775620256985,-319.450739,0.00015543,2]
[420020147,1775620256994,-319.450739,0.00015543,2]
[420020148,1775620257003,-319.450739,0.00015543,2]
[420020149,1775620257013,-319.450739,0.00015543,2]
[420020150,1775620257023,-151.0,0.00015543,2]
[420020151,1775620257033,-388.262627,0.00015543,2]
[420020152,1775620257043,-388.262627,0.00015543,2]
[420020153,1775620257053,-388.262627,0.00015543,2]
[420020154,1775620257063,-151.0,0.00015543,2]
[420020155,1775620257073,-388.262634,0.00015543,2]
[420020156,1775620257083,-151.0,0.00015543,2]
[420020157,1775620257092,-151.0,0.00015543,2]
[420020158,1775620257102,-151.0,0.00015543,2]
[420020159,1775620257112,-151.0,0.00015543,2]
[420020160,1775620257122,-151.0,0.00015543,2]
[420020161,1775620257132,-151.0,0.00015543,2]
[420020162,1775620257143,-150.0,0.00015547,2]
[420020163,1775620257154,-150.0,0.00015551,2]
[420020164,1775620257163,-150.0,0.00015556,2]
[420020165,1775620257173,-150.0,0.00015556,2]
[420020166,1775620257183,-150.0,0.00015568,2]
[420020167,1775620257192,-150.0,0.00015568,2]
[420020168,1775620257202,-150.0,0.00015571,2]
[420020169,1775620257211,-500.0,0.00015574,2]
[420020170,1775620257221,-500.0,0.00015574,2]
[420020171,1775620257230,-500.0,0.00015574,2]
[420020172,1775620257240,-200.0,0.00015574,2]
[420020173,1775620257249,-766.01,0.00015593,2]
[420020174,1775620257259,-150.0,0.00015597,2]
[420020175,1775620257269,-14123.3464316,0.000156,2]
[420020176,1775620257279,-150.0,0.00015601,2]
[420020177,1775620257289,-150.0,0.00015614,2]
[420020178,1775620257299,-150.0,0.0001562,2]
[420020179,1775620257309,-150.0,0.00015627,2]
[420020180,1775620257319,-150.0,0.00015627,2]
[420020181,1775620257329,-150.0,0.00015648,2]
[420020182,1775620257339,-150.0,0.0001565,2]
[420020183,1775620257348,-150.0,0.00015656,2]
[420020184,1775620257357,-500.0,0.00015673,2]
[420020185,1775620257368,-500.0,0.00015673,2]
[420020186,1775620257379,-500.68321897,0.00015673,2]
[420020187,1775620257390,-745.74743216,0.0001568,2]
[420020188,1775620257400,-618.04,0.00015684,2]
[420020189,1775620257410,-1000.0,0.00015685,2]
[420020190,1775620257420,-1000.0,0.00015685,2]
[420020191,1775620257430,-1000.0,0.00015685,2]
[420020192,1775620257440,-1000.0,0.00015685,2]
[420020193,1775620257449,-1000.0,0.00015685,2]
[420020194,1775620257459,-1000.0,0.00015685,2]
[420020195,1775620257468,-2812.0,0.00015698,2]
[420020196,1775620257478,-151.0,0.00015699,2]
[420020197,1775620257488,-151.0,0.00015699,2]
[420020198,1775620257497,-151.0,0.00015699,2]
[420020199,1775620257507,-151.0,0.00015699,2]
[420020200,1775620257516,-151.0,0.00015699,2]
[420020201,1775620257526,-151.0,0.00015699,2]
[420020202,1775620257535,-151.0,0.00015699,2]
[420020203,1775620257544,-274.91145032,0.00015699,2]
[420020204,1775620257554,-171.87606985,0.00015699,2]
[420020205,1775620257564,-155.87561475,0.00015699,2]
[420020206,1775620257575,-159.68322175,0.00015699,2]
[420020207,1775620257584,-151.47235084,0.00015699,2]
[420020208,1775620257594,-150.49506649,0.00015699,2]
[420020209,1775620257604,-150.33084193,0.00015699,2]
[420020210,1775620257614,-150.97836575,0.00015699,2]
[420020211,1775620257623,-159.46006097,0.00015699,2]
[420020212,1775620257633,-150.35689888,0.00015699,2]
[420020213,1775620257642,-210.7841716,0.00015699,2]
[420020214,1775620257651,-157.71617808,0.00015699,2]
[420020215,1775620257661,-153.12246359,0.00015699,2]
[420020216,1775620257671,-500.0,0.00015699,2]